Cogmind - Beta 10.2 @@@ ROGUE MODE // 2020.11.27 @ 16:12:41 Player: Michael Result: Destroyed by as-98460 with Assembled Rifle Performance ------------- Evolutions (0) 0 Regions Visited (4) 800 Robots Destroyed (14) 70 Value Destroyed (275) 275 Prototype IDs (23) 460 Alien Tech Used (0) 0 Bonus (300) 300 TOTAL SCORE: 1905 Bonus ------- Aligned with FarCom 300 Cogmind --------- Core Integrity 0/250 Matter 290/300 Energy 54/100 System Corruption 7% Temperature Cool (0) Movement Rolling (90) Ox1 Location -9/Mines Parts ------- > --- POWER (1) -------- (None) > --- PROPULSION (2) --- Wheel Wheel > --- UTILITY (2) ------ High-capacity Storage Unit > --- WEAPON (2) ------- (None) > --- INVENTORY (12) --- Fission Core Fission Core Wheel Armored Wheel Medium Storage Unit Large Storage Unit 0b10 Alert Chip EM Pulse Gun Assault Rifle Shotgun Peak State ------------ > --- POWER ------------ Ion Engine > --- PROPULSION ------- Wheel Wheel > --- UTILITY ---------- High-capacity Storage Unit Targeting Computer > --- WEAPON ----------- Assault Rifle Light Assault Rifle > --- INVENTORY -------- Reinforced Deuterium Engine Fission Core Fission Core Aluminum Leg Aluminum Leg Aluminum Leg Aluminum Leg Medium Storage Unit Large Storage Unit EM Pulse Gun EM Pulse Gun [Rating: 9] Favorites ----------- Power Ion Engine Engine Ion Engine Propulsion Aluminum Leg Leg Aluminum Leg Wheel Wheel Utility Targeting Computer Storage High-capacity Storage Unit Processor Targeting Computer Weapon Assault Rifle Energy Gun EM Pulse Gun Ballistic Gun Assault Rifle Build | -11 -10 -10 -10 -9 ------- Run | Scr Mat Min Exi Min Slots Evolved . | . . . . . Power . | . . . . . Propulsion . | . . . . . Utility . | . . . . . Weapon . | . . . . . Parts Attached 22 | 5 6 3 . 8 Power 2 | . 1 . . 1 Engine 2 | . 1 . . 1 Core . | . . . . . Reactor . | . . . . . Propulsion 11 | 2 2 2 . 5 Treads . | . . . . . Leg 5 | 2 2 . . 1 Wheel 6 | . . 2 . 4 Hover . | . . . . . Flight . | . . . . . Utility 4 | 1 2 1 . . Device . | . . . . . Storage 3 | 1 1 1 . . Processor 1 | . 1 . . . Hackware . | . . . . . Protection . | . . . . . Artifact . | . . . . . Weapon 5 | 2 1 . . 2 Energy Gun 2 | 1 . . . 1 Energy Cannon . | . . . . . Ballistic Gun 3 | 1 1 . . 1 Ballistic Cannon . | . . . . . Launcher . | . . . . . Special Weapon . | . . . . . Impact Weapon . | . . . . . Slashing Weapon . | . . . . . Piercing Weapon . | . . . . . Special Melee Weapon . | . . . . . Unidentified Prototypes . | . . . . . Parts Lost 6 | . . . . 6 Power 2 | . . . . 2 Propulsion 1 | . . . . 1 Utility 1 | . . . . 1 Weapon 2 | . . . . 2 Highest Loss Streak 4 | . . . . 4 Average Slot Usage (%) 92 | . 84 100 100 97 Engine 7 | . 1 14 14 12 Leg 13 | . 28 22 . . Wheel 14 | . . 5 28 27 Storage 14 | . 14 14 14 14 Processor 13 | . 12 14 14 13 Energy Gun 3 | . 6 . . 2 Ballistic Gun 24 | . 21 28 28 24 Naked Turns . | . . . . . Heaviest Build 40 | 8 16 40 40 40 Greatest Support 20 | 20 20 20 20 20 Greatest Overweight (x) 3 | . . 1 1 3 Average Overweight (x) . | . . . 1 1 Largest Inventory Capacity 12 | 6 8 12 12 12 Average Capacity 9 | 5 7 8 12 12 Most Carried 12 | 4 8 8 12 12 Average Carried 8 | 3 6 8 10 11 Final Capacity 12 | 6 8 12 12 12 Final Carried 12 | 4 8 8 12 10 Class Distribution -------------------- 81% | Mutant 18% | Scavenger-Mutant Dominant Class ---------------- Mutant | -10/Materials Scavenger-Mutant | -10/Mines Mutant | -10/Exiles Mutant | -9/Mines Resources | -11 -10 -10 -10 -9 ----------- Run | Scr Mat Min Exi Min Matter Collected 537 | 193 226 . . 118 Remotely . | . . . . . Salvage Created 435 | . 269 . . 166 Parts 26 | . 17 . . 9 Haulers Intercepted . | . . . . . Recyclers Shooed . | . . . . . Parts Field Recycled . | . . . . . Retrieved Matter . | . . . . . Parts Self-Destructed . | . . . . . Prevented . | . . . . . Kills | -11 -10 -10 -10 -9 ------- Run | Scr Mat Min Exi Min Combat Hostiles Destroyed 9 | . 7 . . 2 Guns 9 | . 7 . . 2 Classes Destroyed 3 | . 3 . . . Worker 5 | . 2 . . 3 Swarmer 3 | . 3 . . . Grunt 6 | . 4 . . 2 Best Kill Streak 3 | . 3 . . 2 Combat Bots Only 3 | . 3 . . 2 Max Kills in Single Turn 1 | . 1 . . 1 Gunslinging . | . . . . . Exploded . | . . . . . Melee . | . . . . . Uniques/NPCs Destroyed . | . . . . . Combat | -11 -10 -10 -10 -9 -------- Run | Scr Mat Min Exi Min Damage Taken 790 | . 295 . . 495 Core 261 | . 91 . . 170 Absorbed by Shields . | . . . . . Core Remaining (%) 100 | 100 . . . . Volleys Fired 42 | . 29 . . 13 Largest 2 | . 2 . . 2 Hottest 60 | . 60 . . 60 Shots Fired 79 | . 55 . . 24 Gun 79 | . 55 . . 24 Cannon . | . . . . . Launcher . | . . . . . Special . | . . . . . Kinetic 69 | . 51 . . 18 Thermal . | . . . . . Explosive . | . . . . . Electromagnetic 10 | . 4 . . 6 Robot Hit Streak 23 | . 9 . . 23 Robot Miss Streak 2 | . 2 . . 1 Penetration Max . | . . . . . Secondary Targets . | . . . . . Shots Hit Robots 62 | . 43 . . 19 Core Hits 25 | . 15 . . 10 Critical Hits . | . . . . . Critical Kills . | . . . . . Critical Parts Destroyed . | . . . . . Melee Attacks . | . . . . . Impact . | . . . . . Slashing . | . . . . . Piercing . | . . . . . Sneak Attacks . | . . . . . Combat Hostiles . | . . . . . Follow-up Attacks . | . . . . . Damage Inflicted 769 | . 469 . . 300 Guns 671 | . 469 . . 202 Cannons . | . . . . . Explosions 38 | . . . . 38 Melee . | . . . . . Ramming 60 | . . . . 60 Kinetic 558 | . 433 . . 125 Thermal 38 | . . . . 38 Explosive . | . . . . . Electromagnetic 113 | . 36 . . 77 Impact . | . . . . . Slashing . | . . . . . Piercing . | . . . . . Highest Corruption 7 | . . . . 7 Average Corruption 3 | . . . . 3 Corruption Purged . | . . . . . Effects 1 | . . . . 1 Energy Discharges 1 | . . . . 1 Overload Shots . | . . . . . Overflow Damage 23 | . . . . 23 Projectiles . | . . . . . Explosions 23 | . . . . 23 Melee . | . . . . . Knockbacks . | . . . . . Impact . | . . . . . Kinetic . | . . . . . Secondary . | . . . . . Self-Inflicted Damage 84 | . . . . 84 Shots 1 | . . . . 1 Rammed 5 | . . . . 5 Targets Rammed 5 | . . . . 5 Kicked . | . . . . . Crushed . | . . . . . Highest Temperature 90 | . 5 . . 90 Average Temperature 27 | . 2 . . 41 Received Heat Transfer 326 | . 153 . . 173 Siege Activations . | . . . . . Robots Corrupted . | . . . . . Combat Hostiles . | . . . . . Parts Fried . | . . . . . Impact Corruptions . | . . . . . Robots Melted . | . . . . . Combat Hostiles . | . . . . . Parts Melted . | . . . . . Heat Transferred 50 | . . . . 50 Parts Sabotaged . | . . . . . Parts Stolen . | . . . . . Parts Stripped . | . . . . . Power Chain Reactions 1 | . . . . 1 Missiles Intercepted . | . . . . . Alert | -11 -10 -10 -10 -9 ------- Run | Scr Mat Min Exi Min Peak Influence 182 | . 182 36 . 60 Initial 36 | . . 36 . . Average 51 | . 63 36 . 40 Maximum Alert Level . | . . . . . Low Security (%) 100 | 100 100 100 . 100 Level 1 . | . . . . . Level 2 . | . . . . . Level 3 . | . . . . . Level 4 . | . . . . . Level 5 . | . . . . . High Security . | . . . . . Max Security . | . . . . . Squads Dispatched 3 | . 3 . . . Investigation 1 | . 1 . . . Extermination . | . . . . . Reinforcement 2 | . 2 . . . Assault . | . . . . . Garrison . | . . . . . Intercept . | . . . . . Construction Impeded . | . . . . . Haulers Reinforced . | . . . . . Stealth | -11 -10 -10 -10 -9 --------- Run | Scr Mat Min Exi Min Distress Signals 2 | . 1 . . 1 Communications Jammed . | . . . . . Distress Signals . | . . . . . Times Spotted 29 | . 17 . . 12 Peak Tracking Total 15 | . 5 . . 15 Tactical Retreats 1 | . 1 . . . Traps | -11 -10 -10 -10 -9 ------- Run | Scr Mat Min Exi Min Traps Triggered 1 | . 1 . . . Indirectly . | . . . . . Trap Hack Attempts . | . . . . . Triggered . | . . . . . Disarmed . | . . . . . Reprogrammed . | . . . . . Reused . | . . . . . Traps Extracted . | . . . . . Installed . | . . . . . Triggered . | . . . . . Exploded 1 | . . . . 1 Machines | -11 -10 -10 -10 -9 ---------- Run | Scr Mat Min Exi Min Machines Disabled 1 | . . . . 1 Max in Single Turn 1 | . . . . 1 Machines Sabotaged . | . . . . . Garrisons Compromised . | . . . . . Overloaded Fab Kills . | . . . . . Fab Network Shutdowns . | . . . . . Hacking | -11 -10 -10 -10 -9 --------- Run | Scr Mat Min Exi Min Machines Accessed 5 | . 4 . 1 . Terminals 3 | . 3 . . . Fabricators . | . . . . . Repair Stations . | . . . . . Recycling Units 1 | . 1 . . . Scanalyzers . | . . . . . Garrison Access . | . . . . . Total Hacks 7 | . 6 . 1 . Successful 5 | . 4 . 1 . Failed 2 | . 2 . . . Catastrophic . | . . . . . Database Lockouts . | . . . . . Manual 1 | . . . 1 . Terminals 4 | . 4 . . . Fabricators . | . . . . . Repair Stations . | . . . . . Recycling Units 2 | . 2 . . . Scanalyzers . | . . . . . Garrison Access . | . . . . . Terminal Hacks 4 | . 3 . 1 . Patrol Status 1 | . 1 . . . Zone Layout 2 | . 2 . . . EX-Prototype ID Bank 1 | . . . 1 . Fabricator Hacks . | . . . . . Repair Station Hacks . | . . . . . Recycling Unit Hacks 1 | . 1 . . . Retrieve Components 1 | . 1 . . . Scanalyzer . | . . . . . Garrison Access Hacks . | . . . . . Unauthorized Hacks . | . . . . . Terminals . | . . . . . Fabricators . | . . . . . Repair Stations . | . . . . . Recycling Units . | . . . . . Scanalyzers . | . . . . . Garrison Access . | . . . . . Data Cores Recovered . | . . . . . Used . | . . . . . Hacking Detections 1 | . 1 . . . Full Trace Events . | . . . . . Feedback Events . | . . . . . Feedback Blocked . | . . . . . Robot Schematics Acquired . | . . . . . Robots Built . | . . . . . Matter . | . . . . . Time . | . . . . . Total Robot Build Rating . | . . . . . Part Schematics Acquired . | . . . . . Parts Built . | . . . . . Matter . | . . . . . Time . | . . . . . Total Part Build Rating . | . . . . . Parts Repaired . | . . . . . Time . | . . . . . Parts Recycled . | . . . . . Recycled Matter . | . . . . . Retrieved Matter . | . . . . . Retrieved Components 4 | . 4 . . . Parts Scanalyzed . | . . . . . Part Schematics Acquired . | . . . . . Parts Damaged . | . . . . . Bothacking | -11 -10 -10 -10 -9 ------------ Run | Scr Mat Min Exi Min Used RIF Installer . | . . . . . Robots Hacked . | . . . . . Non-combat . | . . . . . Combat . | . . . . . Robot Hacks Applied . | . . . . . Relay Couplers Released . | . . . . . Robots Rewired . | . . . . . Allies Hacked . | . . . . . Hacks Repelled . | . . . . . Allies | -11 -10 -10 -10 -9 -------- Run | Scr Mat Min Exi Min Total Allies . | . . . . . Largest Group . | . . . . . Highest-Rated Group . | . . . . . Highest-Rated Ally . | . . . . . Total Orders . | . . . . . Ally Attacks . | . . . . . Total Damage . | . . . . . Kills . | . . . . . Allies Corrupted . | . . . . . Allies Melted . | . . . . . Intel | -11 -10 -10 -10 -9 ------- Run | Scr Mat Min Exi Min Robot Analysis Total . | . . . . . Derelict Logs Recovered 1 | . . . . 1 Drone Launches . | . . . . . Drone Recoveries . | . . . . . Exploration | -11 -10 -10 -10 -9 ------------- Run | Scr Mat Min Exi Min Turns Passed 1350 | 58 593 49 302 348 Spaces Moved 1051 | 43 356 38 332 282 Core 8 | 8 . . . . Treads . | . . . . . Legs 425 | 35 356 34 . . Wheels 618 | . . 4 332 282 Hover . | . . . . . Flight . | . . . . . Fastest Speed 50 | 50 120 90 90 90 Average Speed 101 | 106 120 116 90 90 Slowest Speed 120 | 120 120 120 90 110 Overloaded Moves . | . . . . . Propulsion Burnouts . | . . . . . Robots Hopped . | . . . . . Cave-ins Triggered . | . . . . . Exploration Rate (%) 41 | 3 64 11 70 61 Regions Visited 4 Branch Regions 3 Pre-discovered Areas 1 | . . . . 1 Known Exits Taken . | . . . . . Unknown Exits Taken 4 | 1 1 1 1 . Scrap Searched 2 | . . . . 2 Spaces Dug . | . . . . . Terrain Destroyed 9 | . . . . 9 Melee . | . . . . . Projectile . | . . . . . AOE 9 | . . . . 9 Terrain Rammed . | . . . . . Walls Destroyed . | . . . . . Machines Disabled . | . . . . . Actions | -11 -10 -10 -10 -9 --------- Run | Scr Mat Min Exi Min Total 1256 | 52 472 40 335 357 Wait 109 | 1 71 . . 37 Move 1047 | 42 355 37 331 282 Hop . | . . . . . Pick Up 18 | 4 6 . 4 4 Fast Attach 8 | 5 2 . . 1 Attach 2 | . . . . 2 Detach 1 | . . . . 1 Swap 12 | . 4 3 . 5 Drop 12 | . 5 . . 7 Fire 42 | . 29 . . 13 Melee . | . . . . . Ram 5 | . . . . 5 Kick . | . . . . . Crush . | . . . . . Escape Stasis . | . . . . . Rewire . | . . . . . Trap . | . . . . . Miscellaneous . | . . . . . Route ------- -11/Scrapyard -10/Materials (discovered 3 exits: [*Mat] / [*Min x2]) -10/Mines -10/Exiles -9/Mines History --------- Turn | Location | Event 9 | -11/Scrapyard | Discovered new exit (range 15) 59 | -11/Scrapyard | Entered Materials 266 | -10/Materials | Discovered new exit (range 5) 310 | -10/Materials | Build established: Mutant 453 | -10/Materials | Discovered new exit (range 11) 618 | -10/Materials | Discovered new exit (range 16) 652 | -10/Materials | Entered Mines 655 | -10/Mines | Met a Derelict bent on vengeance 692 | -10/Mines | Deemed a non-threat by the Exiles lab entrance 692 | -10/Mines | Discovered new exit (range 5) 701 | -10/Mines | Entered Exiles 723 | -10/Exiles | Met 8R-AWN 773 | -10/Exiles | Met EX-HEX 813 | -10/Exiles | Met EX-DEC 878 | -10/Exiles | Met EX-BIN 891 | -10/Exiles | Aligned with FarCom system 892 | -10/Exiles | Given EX-Vault access code 912 | -10/Exiles | Opened EX-Vault 918 | -10/Exiles | Found 0b10 Alert Chip 938 | -10/Exiles | Warned to stay clear of 0b10 Research branches 950 | -10/Exiles | Exiles lab attacked by MAIN.C 994 | -10/Exiles | Discovered new exit (range 12) 1003 | -10/Exiles | Left Exiles lab with 0b10 Alert Chip 1003 | -10/Exiles | Entered Mines 1074 | -9/Mines | Core integrity fell below 50% 1108 | -9/Mines | Learned location of Storage (-9) 1313 | -9/Mines | Assembled infested the area 1320 | -9/Mines | Learned location of 1 exit from Materials 1347 | -9/Mines | Core integrity fell below 20% 1351 | -9/Mines | Destroyed by as-98460 with Assembled Rifle Last Messages --------------- 01320_ Acquired derelict log, extracted data. Data stored: Materials exits (x1). 01323_ Dropped Rigged Rnf. Deuterium Engine. 01328_ Rigged Rnf. Deuterium Engine explodes. 01328_ as-30168 destroyed. 01338_ Lgt. Assault Rifle destroyed. 01339_ Slammed into as-67985. 01341_ Slammed into as-25031. 01342_ Ion Engine destroyed. 01342_ Slammed into as-29293. 01342_ Destabilizing: System corrupted (+2). 01343_ as-37218 destroyed. 01343_ Slammed into as-98460. 01344_ Wheel destroyed. 01345_ K-01 Serf collects debris. 01347_ D-53 Grenadier destroyed. 01348_ Targeting Computer destroyed. 01348_ System corrupted by crushing effect (+5). 01349_ D-53 Grenadier shuts down. 01351_ System corrupted: Energy discharge (-35). Map ----- +----------------------------------------------------+ | | | | | | | | | | | | | | | | | | | | | ?????????????????????????????????????????????????? | | ?????????????????????????####????????????????????? | | ???????????????#####?##### ##???????????????????? | | ????????####??## ### #???????????????????? | | ???????## #### #???????????????????? | | ???????# ##???????????????????? | | ???????# """""##??????????????????? | | ??????## ### #??????????????????? | | ?????## #### % #??????????????????? | | ????## == ### ## ##"""*!##?????????????????? | | ##??# !%! ##### #### #%=%#?????????????????? | | #### ### ##???####??###!*!#?????????????????? | | ## ##?####????????????###%#?????????????????? | | ##?????????????####???#!#?????????????????? | | ##?????????????## #####%##????????????????? | | ##??????????????# @ a %% # % #?????? | | ##???????????????# aa %